Cogmind - Beta 10.2 @@@ ROGUE MODE // 2021.10.16 @ 22:12:27 Player: arctifire Result: Destroyed by DAS Turret with DAS Cannon Performance ------------- Evolutions (1) 500 Regions Visited (4) 800 Robots Destroyed (19) 95 Value Destroyed (376) 376 Prototype IDs (30) 600 Alien Tech Used (0) 0 Bonus (452) 452 TOTAL SCORE: 2823 Bonus ------- Pacifist 200 Aligned with FarCom 300 Friendly Fire -48 Cogmind --------- Core Integrity 0/400 Matter 154/300 Energy 96/100 System Corruption 5% Temperature Cool (0) Movement Core (400) Ox7 Location -9/Exiles Parts ------- > --- POWER (1) -------- (None) > --- PROPULSION (2) --- (None) > --- UTILITY (3) ------ Large Storage Unit Experimental Targeting Computer Trap Reconfigurator > --- WEAPON (3) ------- 8R-AWN's Boregun > --- INVENTORY (10) --- Improved Ion Engine Armored Treads Armored Treads Experimental Heat Sink Gravity Neutralizing Apparatus Gravity Neutralizing Apparatus 0b10 Alert Chip Peak State ------------ > --- POWER ------------ (None) > --- PROPULSION ------- (None) > --- UTILITY ---------- Large Storage Unit Experimental Targeting Computer Trap Reconfigurator > --- WEAPON ----------- AWS/Thermal 8R-AWN's Boregun > --- INVENTORY -------- Improved Ion Engine Armored Treads Armored Treads Experimental Heat Sink Gravity Neutralizing Apparatus Gravity Neutralizing Apparatus 0b10 Alert Chip [Rating: 45] Favorites ----------- Power Heavy Ion Engine Engine Heavy Ion Engine Power Core Reinforced Fission Core Propulsion Armored Treads Treads Armored Treads Leg Aluminum Leg Wheel Armored Wheel Utility Improved Sensor Array Device Improved Sensor Array Storage Large Storage Unit Processor Signal Interpreter Weapon Improved Assault Rifle Energy Gun AWS/Thermal Ballistic Gun Improved Assault Rifle Build | -11 -10 -9 -9 -9 ------- Run | Scr Mat Mat Min Exi Slots Evolved 2 | . . 2 . . Power . | . . . . . Propulsion . | . . . . . Utility 1 | . . 1 . . Weapon 1 | . . 1 . . Parts Attached 39 | . 5 17 . 17 Power 4 | . 1 1 . 2 Engine 3 | . 1 1 . 1 Core 1 | . . . . 1 Reactor . | . . . . . Propulsion 6 | . 2 4 . . Treads 2 | . . 2 . . Leg . | . . . . . Wheel 4 | . 2 2 . . Hover . | . . . . . Flight . | . . . . . Utility 9 | . 2 2 . 5 Device 5 | . 1 . . 4 Storage 2 | . 1 1 . . Processor 2 | . . 1 . 1 Hackware . | . . . . . Protection . | . . . . . Artifact . | . . . . . Weapon 20 | . . 10 . 10 Energy Gun 5 | . . 2 . 3 Energy Cannon . | . . . . . Ballistic Gun 15 | . . 8 . 7 Ballistic Cannon . | . . . . . Launcher . | . . . . . Special Weapon . | . . . . . Impact Weapon . | . . . . . Slashing Weapon . | . . . . . Piercing Weapon . | . . . . . Special Melee Weapon . | . . . . . Unidentified Prototypes 7 | . . 3 . 4 Parts Lost 7 | . . . . 7 Power 1 | . . . . 1 Propulsion 2 | . . . . 2 Utility . | . . . . . Weapon 4 | . . . . 4 Highest Loss Streak 6 | . . . . 6 Average Slot Usage (%) 92 | . 99 92 100 89 Engine 8 | . 14 11 11 4 Core 2 | . . . . 5 Treads 13 | . . 5 22 21 Wheel 8 | . 26 16 . . Device 11 | . 13 11 11 11 Storage 11 | . 14 11 11 11 Processor 6 | . . 4 11 9 Energy Gun 3 | . . 4 . 5 Ballistic Gun 25 | . 28 28 33 22 Naked Turns . | . . . . . Heaviest Build 49 | 11 20 38 34 49 Greatest Support 40 | 20 20 40 40 40 Greatest Overweight (x) 10 | . . 1 . 10 Average Overweight (x) . | . . . . . Largest Inventory Capacity 14 | 6 8 14 10 10 Average Capacity 9 | 6 7 10 10 10 Most Carried 10 | 6 6 10 10 10 Average Carried 8 | 6 5 9 10 9 Final Capacity 10 | 6 8 10 10 10 Final Carried 10 | 6 6 10 10 7 Class Distribution -------------------- 78% | Skirmisher 14% | Mutant 7% | Gunner Dominant Class ---------------- Mutant | -10/Materials Skirmisher | -9/Materials Skirmisher | -9/Mines Skirmisher | -9/Exiles Resources | -11 -10 -9 -9 -9 ----------- Run | Scr Mat Mat Min Exi Matter Collected 925 | 200 . 480 8 237 Remotely . | . . . . . Salvage Created 827 | . . 590 . 237 Parts 45 | . . 37 . 8 Haulers Intercepted 2 | . . 2 . . Recyclers Shooed 1 | . . 1 . . Parts Field Recycled . | . . . . . Retrieved Matter . | . . . . . Parts Self-Destructed . | . . . . . Prevented . | . . . . . Kills | -11 -10 -9 -9 -9 ------- Run | Scr Mat Mat Min Exi Combat Hostiles Destroyed 19 | . . 11 . 8 Guns 18 | . . 10 . 8 AOE 1 | . . 1 . . Classes Destroyed 9 | . . 7 . 2 Worker 1 | . . 1 . . Builder 1 | . . 1 . . Hauler 2 | . . 2 . . Watcher 2 | . . 2 . . Swarmer 4 | . . 4 . . Grunt 5 | . . 5 . . Sentry 2 | . . 2 . . Zionite 1 | . . . . 1 Assembled 7 | . . . . 7 Best Kill Streak 8 | . . 5 . 8 Combat Bots Only 7 | . . 4 . 7 Max Kills in Single Turn 2 | . . 2 . 1 Gunslinging . | . . . . . Exploded 1 | . . 1 . . Melee . | . . . . . Uniques/NPCs Destroyed 1 | . . . . 1 8R-AWN (-9/Exiles) Combat | -11 -10 -9 -9 -9 -------- Run | Scr Mat Mat Min Exi Damage Taken 2684 | . . 477 . 2207 Core 438 | . . 30 . 408 Absorbed by Shields . | . . . . . Core Remaining (%) 100 | 100 100 . . . Volleys Fired 69 | . . 35 . 34 Largest 3 | . . 3 . 3 Hottest 80 | . . 80 . 69 Shots Fired 194 | . . 105 . 89 Gun 194 | . . 105 . 89 Cannon . | . . . . . Launcher . | . . . . . Special . | . . . . . Kinetic 153 | . . 95 . 58 Thermal 31 | . . . . 31 Explosive . | . . . . . Electromagnetic 10 | . . 10 . . Robot Hit Streak 25 | . . 14 . 25 Robot Miss Streak 6 | . . 6 . 2 Penetration Max . | . . . . . Secondary Targets 2 | . . 2 . . Max Gunslinging Chain 1 | . . 1 . . Autonomous 31 | . . . . 31 Shots Hit Robots 132 | . . 57 . 75 Core Hits 48 | . . 23 . 25 Critical Hits . | . . . . . Critical Kills . | . . . . . Critical Parts Destroyed . | . . . . . Melee Attacks . | . . . . . Impact . | . . . . . Slashing . | . . . . . Piercing . | . . . . . Sneak Attacks . | . . . . . Combat Hostiles . | . . . . . Follow-up Attacks . | . . . . . Damage Inflicted 2340 | . . 867 . 1473 Guns 2235 | . . 762 . 1473 Cannons . | . . . . . Explosions 105 | . . 105 . . Melee . | . . . . . Ramming . | . . . . . Kinetic 1347 | . . 684 . 663 Thermal 915 | . . 105 . 810 Explosive . | . . . . . Electromagnetic 78 | . . 78 . . Impact . | . . . . . Slashing . | . . . . . Piercing . | . . . . . Highest Corruption 5 | . . 5 5 5 Average Corruption 5 | . . 5 5 5 Corruption Purged . | . . . . . Effects 35 | . . 5 3 27 Message Errors 5 | . . 1 1 3 Matter Fused 11 | . . 2 . 9 Heat Flow Errors 3 | . . . 1 2 Energy Discharges 3 | . . 1 . 2 Parts Rejected 1 | . . . . 1 Data Loss (minor) 4 | . . 1 1 2 Data Loss (major) 1 | . . . . 1 Misfires 3 | . . . . 3 Targeting Errors 3 | . . . . 3 Weapon Failures 1 | . . . . 1 Overload Shots . | . . . . . Overflow Damage 15 | . . 15 . . Projectiles . | . . . . . Explosions 15 | . . 15 . . Melee . | . . . . . Knockbacks . | . . . . . Impact . | . . . . . Kinetic . | . . . . . Secondary . | . . . . . Self-Inflicted Damage 33 | . . 33 . . Shots 1 | . . 1 . . Rammed . | . . . . . Targets Rammed . | . . . . . Kicked . | . . . . . Crushed . | . . . . . Highest Temperature 245 | . . 64 137 245 Average Temperature 43 | . . 21 75 90 Received Heat Transfer 260 | . . 153 . 107 Siege Activations . | . . . . . Robots Corrupted . | . . . . . Combat Hostiles . | . . . . . Parts Fried . | . . . . . Impact Corruptions . | . . . . . Robots Melted . | . . . . . Combat Hostiles . | . . . . . Parts Melted . | . . . . . Heat Transferred 874 | . . 100 . 774 Parts Sabotaged . | . . . . . Parts Stolen . | . . . . . Parts Stripped . | . . . . . Power Chain Reactions 1 | . . 1 . . Missiles Intercepted . | . . . . . Alert | -11 -10 -9 -9 -9 ------- Run | Scr Mat Mat Min Exi Peak Influence 291 | . 15 291 81 . Initial 81 | . . 12 81 . Average 110 | . 1 163 81 . Maximum Alert Level 1 | . . 1 . . Low Security (%) 81 | 100 100 70 100 . Level 1 18 | . . 29 . . Level 2 . | . . . . . Level 3 . | . . . . . Level 4 . | . . . . . Level 5 . | . . . . . High Security . | . . . . . Max Security . | . . . . . Squads Dispatched 1 | . . 1 . . Investigation . | . . . . . Extermination . | . . . . . Reinforcement 1 | . . 1 . . Assault . | . . . . . Garrison . | . . . . . Intercept . | . . . . . Construction Impeded . | . . . . . Haulers Reinforced . | . . . . . Stealth | -11 -10 -9 -9 -9 --------- Run | Scr Mat Mat Min Exi Distress Signals 4 | . 1 3 . . Communications Jammed . | . . . . . Distress Signals . | . . . . . Times Spotted 45 | . 2 15 . 28 Peak Tracking Total 10 | . 2 6 . 10 Tactical Retreats 6 | . 1 1 . 4 Traps | -11 -10 -9 -9 -9 ------- Run | Scr Mat Mat Min Exi Traps Triggered . | . . . . . Indirectly . | . . . . . Trap Hack Attempts . | . . . . . Triggered . | . . . . . Disarmed . | . . . . . Reprogrammed . | . . . . . Reused . | . . . . . Traps Extracted . | . . . . . Installed . | . . . . . Triggered . | . . . . . Machines | -11 -10 -9 -9 -9 ---------- Run | Scr Mat Mat Min Exi Machines Disabled 3 | . . 1 . 2 Max in Single Turn 1 | . . 1 . 1 Machines Sabotaged . | . . . . . Garrisons Compromised . | . . . . . Overloaded Fab Kills . | . . . . . Fab Network Shutdowns . | . . . . . Hacking | -11 -10 -9 -9 -9 --------- Run | Scr Mat Mat Min Exi Machines Accessed 3 | . 1 1 . 1 Terminals 2 | . 1 1 . . Fabricators . | . . . . . Repair Stations . | . . . . . Recycling Units . | . . . . . Scanalyzers . | . . . . . Garrison Access . | . . . . . Total Hacks 5 | . 2 2 . 1 Successful 2 | . . 1 . 1 Failed 3 | . 2 1 . . Catastrophic . | . . . . . Database Lockouts . | . . . . . Manual 3 | . 2 . . 1 Terminals 4 | . 2 2 . . Fabricators . | . . . . . Repair Stations . | . . . . . Recycling Units . | . . . . . Scanalyzers . | . . . . . Garrison Access . | . . . . . Terminal Hacks 2 | . . 1 . 1 Branch Access Points 1 | . . 1 . . EX-Prototype ID Bank 1 | . . . . 1 Fabricator Hacks . | . . . . . Repair Station Hacks . | . . . . . Recycling Unit Hacks . | . . . . . Scanalyzer . | . . . . . Garrison Access Hacks . | . . . . . Unauthorized Hacks . | . . . . . Terminals . | . . . . . Fabricators . | . . . . . Repair Stations . | . . . . . Recycling Units . | . . . . . Scanalyzers . | . . . . . Garrison Access . | . . . . . Data Cores Recovered . | . . . . . Used . | . . . . . Hacking Detections 2 | . 1 1 . . Full Trace Events . | . . . . . Feedback Events . | . . . . . Feedback Blocked . | . . . . . Robot Schematics Acquired . | . . . . . Robots Built . | . . . . . Matter . | . . . . . Time . | . . . . . Total Robot Build Rating . | . . . . . Part Schematics Acquired . | . . . . . Parts Built . | . . . . . Matter . | . . . . . Time . | . . . . . Total Part Build Rating . | . . . . . Parts Repaired . | . . . . . Time . | . . . . . Parts Recycled . | . . . . . Recycled Matter . | . . . . . Retrieved Matter . | . . . . . Retrieved Components . | . . . . . Parts Scanalyzed . | . . . . . Part Schematics Acquired . | . . . . . Parts Damaged . | . . . . . Bothacking | -11 -10 -9 -9 -9 ------------ Run | Scr Mat Mat Min Exi Used RIF Installer . | . . . . . Robots Hacked . | . . . . . Non-combat . | . . . . . Combat . | . . . . . Robot Hacks Applied . | . . . . . Relay Couplers Released . | . . . . . Robots Rewired . | . . . . . Allies Hacked . | . . . . . Hacks Repelled . | . . . . . Allies | -11 -10 -9 -9 -9 -------- Run | Scr Mat Mat Min Exi Total Allies . | . . . . . Largest Group . | . . . . . Highest-Rated Group . | . . . . . Highest-Rated Ally . | . . . . . Total Orders . | . . . . . Ally Attacks . | . . . . . Total Damage . | . . . . . Kills . | . . . . . Allies Corrupted . | . . . . . Allies Melted . | . . . . . Intel | -11 -10 -9 -9 -9 ------- Run | Scr Mat Mat Min Exi Robot Analysis Total . | . . . . . Derelict Logs Recovered . | . . . . . Drone Launches . | . . . . . Drone Recoveries . | . . . . . Exploration | -11 -10 -9 -9 -9 ------------- Run | Scr Mat Mat Min Exi Turns Passed 2069 | 2 291 667 111 998 Spaces Moved 1090 | 2 157 387 66 478 Core 4 | . . . . 4 Treads 625 | . . 85 66 474 Legs 16 | 2 14 . . . Wheels 445 | . 143 302 . . Hover . | . . . . . Flight . | . . . . . Fastest Speed 80 | 120 80 90 170 170 Average Speed 144 | 120 83 115 170 183 Slowest Speed 550 | 120 120 190 170 550 Overloaded Moves . | . . . . . Propulsion Burnouts . | . . . . . Robots Hopped . | . . . . . Cave-ins Triggered . | . . . . . Exploration Rate (%) 24 | 2 25 28 17 51 Regions Visited 4 Branch Regions 2 Pre-discovered Areas . | . . . . . Known Exits Taken 2 | . . 1 1 . Unknown Exits Taken 2 | 1 1 . . . Scrap Searched 2 | . . . 2 . Spaces Dug . | . . . . . Terrain Destroyed 2 | . . 2 . . Melee . | . . . . . Projectile . | . . . . . AOE 2 | . . 2 . . Terrain Rammed . | . . . . . Walls Destroyed . | . . . . . Machines Disabled . | . . . . . Actions | -11 -10 -9 -9 -9 --------- Run | Scr Mat Mat Min Exi Total 1474 | 1 317 534 65 557 Wait 216 | . 145 71 . . Move 1086 | 1 156 386 65 478 Hop . | . . . . . Pick Up 20 | . 5 7 . 8 Fast Attach 22 | . 1 13 . 8 Attach 9 | . . 1 . 8 Detach 5 | . . 1 . 4 Swap 8 | . 4 3 . 1 Drop 39 | . 6 17 . 16 Fire 69 | . . 35 . 34 Melee . | . . . . . Ram . | . . . . . Kick . | . . . . . Crush . | . . . . . Escape Stasis . | . . . . . Rewire . | . . . . . Trap . | . . . . . Miscellaneous . | . . . . . Route ------- -11/Scrapyard -10/Materials -9/Materials (discovered 2 exits: *Min x2) -9/Mines -9/Exiles History --------- Turn | Location | Event 1 | -11/Scrapyard | Discovered new exit (range 1) 3 | -11/Scrapyard | Entered Materials 280 | -10/Materials | Discovered new exit (range 16) 294 | -10/Materials | Entered another Materials area 294 | -9/Materials | Evolved 2 slots: Utility x1, Weapon x1 539 | -9/Materials | Identified exit to Mines 580 | -9/Materials | Build established: Skirmisher 961 | -9/Materials | Entered Mines 1063 | -9/Mines | Deemed a non-threat by the Exiles lab entrance 1063 | -9/Mines | Discovered new exit (range 5) 1070 | -9/Mines | Identified exit to Exiles 1072 | -9/Mines | Entered Exiles 1112 | -9/Exiles | Met 8R-AWN 1144 | -9/Exiles | Met EX-HEX 1188 | -9/Exiles | Met EX-BIN 1208 | -9/Exiles | Aligned with FarCom system 1210 | -9/Exiles | Given EX-Vault access code 1256 | -9/Exiles | Opened EX-Vault 1279 | -9/Exiles | Found AWS/Thermal 1350 | -9/Exiles | Warned to stay clear of 0b10 Research branches 1428 | -9/Exiles | Attacked by the Exiles 1473 | -9/Exiles | Destroyed 7 combat bots 1505 | -9/Exiles | Destroyed 8R-AWN 1762 | -9/Exiles | Found Prototype Ballistic Gun 1762 | -9/Exiles | Identified 8R-AWN's Boregun 1797 | -9/Exiles | Found Prototype Processor 1914 | -9/Exiles | Found Trap Reconfigurator 1924 | -9/Exiles | Identified Exp. Targeting Computer 1925 | -9/Exiles | Found 0b10 Alert Chip 2042 | -9/Exiles | Core integrity fell below 50% 2063 | -9/Exiles | Core integrity fell below 20% 2070 | -9/Exiles | Destroyed by DAS Turret with DAS Cannon Last Messages --------------- 01923_ Dropped Imp. Sensor Array. 01924_ Identified Exp. Targeting Computer. 01925_ Acquired 0b10 Alert Chip. 01960_ System corrupted: Component data lost. 02031_ System corrupted: Rnf. Fission Core rejected. 02031_ Critical hit. 02031_ Arm. Treads destroyed. 02034_ System corrupted: Imp. Assault Rifle targeting data glitched. 02034_ Machine disabled. 02037_ Imp. Assault Rifle destroyed. 02039_ Arm. Treads destroyed. 02039_ Imp. Assault Rifle destroyed. 02041_ Knocked back. 02042_ System corrupted: Imp. Assault Rifle targeting data glitched. 02043_ Imp. Assault Rifle destroyed. 02045_ Knocked back. 02066_ AWS/Thermal destroyed. 02068_ HV Slug penetrates Machine. 02070_ HV Slug penetrates DAS Turret. 02070_ HV Slug penetrates Machine. Map ----- +----------------------------------------------------+ | ?????????????????????????????????## ###"" """" | | ?????????????????????????????????#" """" | | ?????????????????????????????????#" """ | | ?????????????????????????????????#" """ | | ?????????????????????????????????#" """ | | ?????????????????????????????????#" """ | | ?????????????????????????????????#" """ | | ?????????????????????????????????## """ | | ??????????????????????????????????# """ | | ??????????????????????????????????#" "X" """ | | ??????????????????????????????????#" """ | | ???????????????????? ????????????#" """"""""" | | ????????????????????" ??????????##" ########## | | ????????????????????# ?????????##"" #????????? | | ??????????????????### ##??######"" #????????? | | ??????????????#####X# #"###""""""" ##???????? | | ????????????? """""" " "" ##???#### | | ????????????? "" """ " #####""" | | ???????????? " " " " | | ???????????? " | | ???????????? | | ??????????? | | ???????????# | | ????????????#" | | ?????????????""" """""" | | ????????????#" @ ######"" ] | | ????????????"" ""##????###"# | | ????????????""" """##???????# ## | | ????????????"" """##????????#### | | ???????????" ""#??????????#"# | | ???????????? ##????????##"# | | ????????????"" ?????????#" | | ????????????? ????????""" | | ????????????? t ?????? | | ?????????????"" ????? | | ?????????????? ????? | | ?????????????? ????? " "" | | ????????????????" ?????""## ##""" " " " | | ?????????????????? ?????#??# ?#####""" "" | | ????????????????????? ????????????# ??????###"""" | | ???????????????????????????????????# ????????##### | | ???????????????????????????????????!?????????????? | | ?????????????????????????????????????????????????? | | ?????????????????????????????????????????????????? | | ?????????????????????????????????????????????????? | | ?????????????????????????????????????????????????? | | ?????????????????????????????????????????????????? | | ?????????????????????????????????????????????????? | | ?????????????????????????????????????????????????? | | ?????????????????????????????????????????????????? | +----------------------------------------------------+ Best States ------------- Heat Dissipation 54 Energy Generation 19 Energy Capacity 310 Matter Stores 300 Matter Capacity 300 Sight Range 16 Robot Scan Range 13 Terrain Scan Density 10 Evasion (%) 44 Targeting Accuracy 12 Recoil Reduction 2 Item Schematics ----------------- None Robot Schematics ------------------ None Fabricated ------------ Nothing Alien Tech Used ----------------- None Achievements -------------- None Challenges ------------ None Game ------ Seed ResetCloakingFemtoactuators Manual? 0 Play Time 00:14:53 Cumulative 28.4 hours Start 2021.10.16 @ 21:58:19 End 2021.10.16 @ 22:12:27 Sessions 1 Manual Loads 0 Difficulty Rogue Special Mode None Game No. 34 Rogue 10 Adventurer 18 Explorer 6 Win Type - Total 0 Types 0/0/0/0/0/0/0/0/0 Lore% 23 Gallery% 43 Achievement% 55 Wizard Run 0 Options --------- ASCII 0 Keyboard 0 Movement Arrows Keybinds 0 Fullscreen 1 Font 18/SmallcapsGlow Map View 76x50 Tactical HUD 1 Map Filters NONE Filters NONE Steam 1 RUN: cb96a57e-7436-475e-8ebb-361d765f00a3